fUSD/lending_fUSD_20240107
["ID","MTS","AMOUNT","RATE_DAILY","PERIOD"]
[310621523,1704587432512,-150.0,0.00022807,2]
[310621524,1704587432521,-150.0,0.0002281,2]
[310621525,1704587432531,-156.45402908,0.00022811,2]
[310621526,1704587432541,-154.0,0.00022815,2]
[310621527,1704587432550,-150.0,0.00022815,2]
[310621528,1704587432560,-150.0,0.00022817,2]
[310621529,1704587432569,-150.0,0.0002282,2]
[310621530,1704587432578,-150.0,0.00022821,2]
[310621531,1704587432587,-150.0,0.00022823,2]
[310621532,1704587432597,-150.0,0.00022824,2]
[310621533,1704587432606,-150.0,0.00022827,2]
[310621534,1704587432615,-150.0,0.00022827,2]
[310621535,1704587432625,-150.0,0.00022828,2]
[310621536,1704587432634,-150.0,0.00022831,2]
[310621537,1704587432644,-150.0,0.00022838,2]
[310621538,1704587432653,-300.0,0.00022843,2]
[310621539,1704587432663,-300.0,0.00022846,2]
[310621540,1704587432672,-150.0,0.00022847,2]
[310621541,1704587432681,-150.0,0.00022852,2]
[310621542,1704587432691,-150.0,0.00022852,2]
[310621543,1704587432700,-150.0,0.00022854,2]
[310621544,1704587432709,-150.0,0.00022854,2]
[310621545,1704587432718,-150.0,0.00022855,2]
[310621546,1704587432728,-150.0,0.00022859,2]
[310621547,1704587432738,-150.0,0.00022859,2]
[310621548,1704587432747,-150.0,0.0002286,2]
[310621549,1704587432757,-150.0,0.00022862,2]
[310621550,1704587432767,-150.0,0.00022862,2]
[310621551,1704587432777,-150.0,0.00022869,2]
[310621552,1704587432787,-150.0,0.00022874,2]
[310621553,1704587432797,-150.0,0.00022874,2]
[310621554,1704587432806,-150.0,0.00022874,2]
[310621555,1704587432817,-150.0,0.00022875,2]
[310621556,1704587432828,-150.0,0.00022886,2]
[310621557,1704587432839,-150.0,0.00022893,2]
[310621558,1704587432849,-150.0,0.00022895,2]
[310621559,1704587432860,-281.39937776,0.00022897,2]
[310621560,1704587432871,-281.39937773,0.00022898,2]
[310621561,1704587432880,-807.7472,0.00022898,2]
[310621562,1704587432891,-196.8291,0.00022898,2]
[310621563,1704587432901,-1293.3324,0.00022898,2]
[310621564,1704587432910,-281.39937773,0.00022899,2]
[310621565,1704587432920,-193.32810436,0.000229,2]
[310621566,1704587432930,-3862.06527354,0.000229,2]
[310621567,1704587432942,-12678.08,0.000229,2]
[310621568,1704587432951,-150.0,0.00022905,2]
[310621569,1704587432961,-150.0,0.00022908,2]
[310621570,1704587432971,-150.0,0.0002291,2]
[310621571,1704587432980,-150.0,0.00022912,2]
[310621572,1704587432990,-150.0,0.00022913,2]
[310621573,1704587433000,-150.0,0.00022916,2]
[310621574,1704587433010,-150.0,0.00022916,2]
[310621575,1704587433020,-150.0,0.00022916,2]
[310621576,1704587433029,-150.0,0.00022916,2]
[310621577,1704587433039,-1500.0,0.00022917,2]
[310621578,1704587433048,-156.64,0.0002292,2]
[310621579,1704587433060,-150.0,0.00022924,2]
[310621580,1704587433070,-150.0,0.00022929,2]
[310621581,1704587433079,-150.0,0.00022932,2]
[310621582,1704587433089,-150.0,0.00022933,2]
[310621583,1704587433109,-150.0,0.00022937,2]
[310621584,1704587433120,-150.0,0.00022942,2]
[310621585,1704587433131,-431.23,0.00022959,2]
[310621586,1704587433144,-150.0,0.00022959,2]
[310621587,1704587433154,-150.0,0.00022959,2]
[310621588,1704587433164,-150.0,0.0002296,2]
[310621589,1704587433174,-150.0,0.00022963,2]
[310621590,1704587433185,-150.0,0.00022964,2]
[310621591,1704587433195,-150.0,0.00022966,2]
[310621592,1704587433205,-150.0,0.00022967,2]
[310621593,1704587433214,-150.0,0.00022967,2]
[310621594,1704587433223,-150.0,0.00022967,2]
[310621595,1704587433233,-150.0,0.0002297,2]
[310621596,1704587433242,-150.0,0.00022974,2]
[310621597,1704587433252,-1500.0,0.0002298,2]
[310621598,1704587433262,-1500.0,0.00022984,2]
[310621599,1704587433271,-150.0,0.00022984,2]
[310621600,1704587433281,-270.10690298,0.00022984,2]
[310621601,1704587433290,-150.0,0.00022987,2]
[310621602,1704587433300,-150.0,0.00022988,2]
[310621603,1704587433310,-150.0,0.00022989,2]
[310621604,1704587433320,-178.30777722,0.0002299,2]
[310621605,1704587433329,-475.82913707,0.00022995,2]
[310621606,1704587433343,-218.98325398,0.00022995,2]
[310621607,1704587433352,-155.0,0.00022996,2]
[310621608,1704587433362,-198.1994,0.00022996,2]
[310621609,1704587433372,-155.0,0.00022997,2]
[310621610,1704587433381,-1198.0595198,0.00022997,2]
[310621611,1704587433391,-3469.74785166,0.00022997,2]
[310621612,1704587433401,-7055.5052627,0.00022997,2]
[310621613,1704587433411,-2927.51927162,0.00022997,2]
[310621614,1704587433420,-241.52141626,0.00022997,2]
[310621615,1704587433429,-156.45402908,0.00022997,2]
[310621616,1704587433439,-500.0,0.00022997,2]
[310621617,1704587433448,-500.0,0.00022997,2]
[310621618,1704587433459,-500.0,0.00022997,2]
[310621619,1704587433468,-500.0,0.00022997,2]
[310621620,1704587433478,-500.0,0.00022997,2]
[310621621,1704587433488,-500.0,0.00022997,2]
[310621622,1704587433499,-500.0,0.00022997,2]
[310621623,1704587433508,-500.0,0.00022997,2]
[310621624,1704587433517,-500.0,0.00022997,2]
[310621625,1704587433527,-500.0,0.00022997,2]
[310621626,1704587433537,-500.0,0.00022997,2]
[310621627,1704587433546,-500.0,0.00022997,2]
[310621628,1704587433555,-500.0,0.00022997,2]
[310621629,1704587433566,-500.0,0.00022997,2]
[310621630,1704587433576,-500.0,0.00022997,2]
[310621631,1704587433585,-500.0,0.00022997,2]
[310621632,1704587433595,-500.0,0.00022997,2]
[310621633,1704587433604,-142.06520569,0.00022997,2]
[310621634,1704587433630,-357.93479431,0.00022997,2]
[310621635,1704587433640,-500.0,0.00022997,2]
[310621636,1704587433650,-500.0,0.00022997,2]
[310621637,1704587433661,-476.22153341,0.00022997,2]
[310621638,1704587433670,-500.0,0.00022997,2]
[310621639,1704587433679,-500.0,0.00022997,2]
[310621640,1704587433688,-509.14383025,0.00022997,2]
[310621641,1704587433697,-500.0,0.00022997,2]
[310621642,1704587433706,-500.0,0.00022997,2]
[310621643,1704587433716,-156.02,0.00022997,2]
[310621644,1704587433725,-184.00720207,0.00022997,2]
[310621645,1704587433738,-315.99279793,0.00022997,2]
[310621646,1704587433747,-500.0,0.00022997,2]
[310621647,1704587433757,-500.0,0.00022997,2]
[310621648,1704587433767,-500.0,0.00022997,2]
[310621649,1704587433776,-500.0,0.00022997,2]
[310621650,1704587433787,-500.0,0.00022997,2]
[310621651,1704587433796,-500.0,0.00022997,2]
[310621652,1704587433806,-500.0,0.00022997,2]
[310621653,1704587433816,-500.0,0.00022997,2]
[310621654,1704587433826,-500.0,0.00022997,2]
[310621655,1704587433835,-500.0,0.00022997,2]
[310621656,1704587433845,-500.0,0.00022997,2]
[310621657,1704587433854,-500.0,0.00022997,2]
[310621658,1704587433864,-500.0,0.00022997,2]
[310621659,1704587433874,-500.0,0.00022997,2]
[310621660,1704587433884,-500.0,0.00022997,2]
[310621661,1704587433893,-500.0,0.00022997,2]
[310621662,1704587433904,-383.30409105,0.00022997,2]
[310621663,1704587433916,-96.31102573,0.00022997,2]
[310621664,1704587433933,-403.68897427,0.00022997,2]
[310621665,1704587433943,-500.0,0.00022997,2]
[310621666,1704587433953,-500.0,0.00022997,2]
[310621667,1704587433963,-518.78,0.00022997,2]
[310621668,1704587433973,-500.0,0.00022997,2]
[310621669,1704587433983,-500.0,0.00022997,2]
[310621670,1704587433994,-500.0,0.00022997,2]
[310621671,1704587434006,-234.54563428,0.00022997,2]
[310621672,1704587434047,-244.60037777,0.00022978,2]
[310621673,1704587434057,-68.43410448,0.00022997,2]
[310621674,1704587434068,-500.0,0.00022997,2]
[310621675,1704587434078,-500.0,0.00022997,2]
[310621676,1704587434087,-500.0,0.00022997,2]
[310621677,1704587434098,-500.0,0.00022997,2]
[310621678,1704587434109,-500.0,0.00022997,2]
[310621679,1704587434119,-500.0,0.00022997,2]
[310621680,1704587434129,-423.81179242,0.00022997,2]
[310621681,1704587434139,-500.0,0.00022997,2]
[310621682,1704587434149,-500.0,0.00022997,2]
[310621683,1704587434160,-500.0,0.00022997,2]
[310621684,1704587434170,-517.91,0.00022997,2]
[310621685,1704587434180,-500.0,0.00022997,2]
[310621686,1704587434191,-500.0,0.00022997,2]
[310621687,1704587434202,-500.0,0.00022997,2]
[310621688,1704587434211,-500.0,0.00022997,2]
[310621689,1704587434221,-500.0,0.00022997,2]
[310621690,1704587434230,-500.0,0.00022997,2]
[310621691,1704587434240,-506.76,0.00022997,5]
[310621692,1704587434249,-500.0,0.00022997,2]
[310621693,1704587434259,-500.0,0.00022997,2]
[310621694,1704587434269,-500.0,0.00022997,2]
[310621695,1704587434279,-500.0,0.00022997,2]
[310621696,1704587434288,-500.50388884,0.00022997,2]
[310621697,1704587434299,-500.0,0.00022997,2]
[310621698,1704587434311,-500.0,0.00022997,2]
[310621699,1704587434320,-500.0,0.00022997,2]
[310621700,1704587434330,-500.0,0.00022997,2]
[310621701,1704587434342,-533.0,0.00022997,2]
[310621702,1704587434354,-436.76763066,0.00022997,2]
[310621703,1704587434363,-500.0,0.00022997,2]
[310621704,1704587434374,-500.0,0.00022997,2]
[310621705,1704587434383,-500.0,0.00022997,2]
[310621706,1704587434393,-500.0,0.00022997,2]
[310621707,1704587434405,-500.0,0.00022997,2]
[310621708,1704587434415,-419.38881195,0.00022997,2]
[310621709,1704587434426,-500.0,0.00022997,2]
[310621710,1704587434435,-500.0,0.00022997,2]
[310621711,1704587434447,-601.31764896,0.00022997,2]
[310621712,1704587434457,-500.0,0.00022997,2]
[310621713,1704587434467,-500.0,0.00022997,2]
[310621714,1704587434476,-500.0,0.00022997,2]
[310621715,1704587434486,-500.0,0.00022997,2]
[310621716,1704587434496,-500.0,0.00022997,2]
[310621717,1704587434505,-500.0,0.00022997,2]
[310621718,1704587434515,-948.76,0.00022997,2]
[310621719,1704587434524,-500.0,0.00022997,2]
[310621720,1704587434534,-500.0,0.00022997,2]
[310621721,1704587434543,-500.0,0.00022997,2]
[310621722,1704587434553,-1332.92,0.00022997,2]
[310621723,1704587434564,-500.0,0.00022997,2]
[310621724,1704587434573,-500.0,0.00022997,2]
[310621725,1704587434582,-500.0,0.00022997,2]
[310621726,1704587434592,-500.0,0.00022997,2]
[310621727,1704587434606,-500.0,0.00022997,2]
[310621728,1704587434615,-500.0,0.00022997,2]
[310621729,1704587434625,-153580.82782244,0.00022998,2]
[310621731,1704587437525,-500.0,0.00022997,2]
[310621733,1704587437535,-500.0,0.00022997,2]
[310621735,1704587437545,-5265.33464598,0.00022998,2]
[310621736,1704587437556,-500.0,0.00022998,2]
[310621737,1704587437568,-414.21441247,0.00022998,2]
[310621738,1704587437577,-500.0,0.00022998,2]
[310621739,1704587437586,-500.0,0.00022998,2]
[310621740,1704587437596,-500.0,0.00022998,2]
[310621741,1704587437606,-500.0,0.00022998,2]
[310621742,1704587437616,-500.0,0.00022998,2]
[310621743,1704587437627,-500.0,0.00022998,2]
[310621744,1704587437638,-500.0,0.00022998,2]
[310621745,1704587437646,-500.0,0.00022998,2]
[310621746,1704587437655,-500.0,0.00022998,2]
[310621747,1704587437665,-500.0,0.00022998,2]
[310621748,1704587437674,-227.66,0.00022998,2]
[310621749,1704587437684,-242.22529976,0.00022998,2]
[310621750,1704587437693,-500.0,0.00022998,2]
[310621751,1704587437703,-500.0,0.00022998,2]
[310621752,1704587437712,-528.45,0.00022998,2]
[310621753,1704587437721,-500.0,0.00022998,2]
[310621754,1704587437731,-500.0,0.00022998,2]
[310621755,1704587437740,-500.0,0.00022998,2]
[310621756,1704587437750,-500.0,0.00022998,2]
[310621757,1704587437759,-500.0,0.00022998,2]
[310621758,1704587437768,-500.0,0.00022998,2]
[310621759,1704587437786,-500.0,0.00022998,2]
[310621760,1704587437798,-500.0,0.00022998,2]
[310621761,1704587437808,-500.0,0.00022998,2]
[310621762,1704587437818,-500.0,0.00022998,2]
[310621763,1704587437828,-428.65,0.00022998,2]
[310621764,1704587437837,-500.0,0.00022998,2]
[310621765,1704587437847,-533.0,0.00022998,2]
[310621766,1704587437856,-500.0,0.00022998,2]
[310621767,1704587437866,-500.0,0.00022998,2]
[310621768,1704587437875,-500.0,0.00022998,2]
[310621769,1704587437884,-500.0,0.00022998,2]
[310621770,1704587437893,-500.0,0.00022998,2]
[310621771,1704587437903,-500.0,0.00022998,2]
[310621772,1704587437913,-500.0,0.00022998,2]
[310621773,1704587437923,-500.0,0.00022998,2]
[310621774,1704587437933,-500.0,0.00022998,2]
[310621775,1704587437943,-500.0,0.00022998,2]
[310621776,1704587437952,-948.76,0.00022998,2]
[310621777,1704587437961,-500.0,0.00022998,2]
[310621778,1704587437971,-500.0,0.00022998,2]
[310621779,1704587437981,-500.0,0.00022998,2]
[310621780,1704587437993,-1332.92,0.00022998,2]
[310621781,1704587438005,-500.0,0.00022998,2]
[310621782,1704587438014,-500.0,0.00022998,2]
[310621783,1704587438024,-308.79,0.00022998,2]
[310621784,1704587438034,-500.0,0.00022998,2]
[310621785,1704587438044,-500.0,0.00022998,2]
[310621786,1704587438054,-500.0,0.00022998,2]
[310621787,1704587438066,-500.0,0.00022999,2]
[310621788,1704587438076,-500.0,0.00022999,2]
[310621789,1704587438086,-500.0,0.00022999,2]
[310621790,1704587438097,-80.42441376,0.00022999,2]
[310621791,1704587438125,-104.70210296,0.00022999,2]
[310621792,1704587438134,-500.0,0.00022999,2]
[310621793,1704587438144,-500.0,0.00022999,2]
[310621794,1704587438154,-500.0,0.00022999,2]
[310621796,1704587438164,-500.0,0.00022999,2]
[310621797,1704587438173,-500.0,0.00022999,2]
[310621799,1704587438182,-500.0,0.00022999,2]
[310621801,1704587438192,-500.0,0.00022999,2]
[310621803,1704587438201,-500.0,0.00022999,2]
[310621806,1704587438211,-612.88173762,0.00022999,2]
[310621808,1704587438220,-500.0,0.00022999,2]
[310621810,1704587438230,-500.0,0.00022999,2]
[310621812,1704587438239,-500.0,0.00022999,2]
[310621814,1704587438248,-609.36698322,0.00022999,2]
[310621816,1704587438258,-500.0,0.00022999,2]
[310621818,1704587438267,-500.0,0.00022999,2]
[310621820,1704587438277,-500.0,0.00022999,2]
[310621826,1704587438551,-500.0,0.00022999,2]
[310621827,1704587438563,-534.23182208,0.00022999,2]
[310621828,1704587438573,-500.0,0.00022999,2]
[310621829,1704587438582,-500.0,0.00022999,2]
[310621830,1704587438592,-500.0,0.00022999,2]
[310621831,1704587438602,-500.0,0.00022999,2]
[310621832,1704587438612,-500.0,0.00022999,2]
[310621833,1704587438621,-500.0,0.00022999,2]
[310621834,1704587438631,-500.0,0.00022999,2]
[310621835,1704587438641,-408.83875177,0.00022999,2]
[310621836,1704587438650,-500.0,0.00022999,2]
[310621837,1704587438659,-500.0,0.00022999,2]
[310621838,1704587438668,-500.0,0.00022999,2]
[310621839,1704587438677,-475.87678172,0.00022999,2]
[310621840,1704587438686,-500.0,0.00022999,2]
[310621841,1704587438695,-500.0,0.00022999,2]
[310621842,1704587438706,-500.0,0.00022999,2]
[310621843,1704587438715,-500.0,0.00022999,2]
[310621844,1704587438724,-500.0,0.00022999,2]
[310621845,1704587438732,-250.92609236,0.00022999,2]
[310621846,1704587438751,-500.0,0.00022998,2]
[310621847,1704587438760,-249.07390764,0.00022999,2]
[310621848,1704587438770,-215.06318702,0.00022999,2]
[310621849,1704587438779,-500.0,0.00022999,2]
[310621850,1704587438788,-500.0,0.00022999,2]
[310621851,1704587438797,-500.0,0.00022999,2]
[310621852,1704587438806,-500.0,0.00022999,2]
[310621853,1704587438815,-500.0,0.00022999,2]
[310621854,1704587438825,-500.0,0.00022999,2]
[310621855,1704587438835,-500.0,0.00022999,2]
[310621856,1704587438844,-500.0,0.00022999,2]
[310621857,1704587438853,-500.0,0.00022999,2]
[310621858,1704587438863,-500.0,0.00022999,2]
[310621859,1704587438874,-500.0,0.00022999,2]
[310621860,1704587438885,-207.36105245,0.00022999,2]
[310621861,1704587438894,-500.0,0.00022999,2]
[310621862,1704587438903,-500.0,0.00022999,2]
[310621863,1704587438913,-500.0,0.00022999,2]
[310621864,1704587438921,-428.65262531,0.00022999,2]
[310621865,1704587438931,-500.0,0.00022999,2]
[310621866,1704587438940,-500.0,0.00022999,2]
[310621867,1704587438949,-500.0,0.00022999,2]
[310621868,1704587438959,-500.0,0.00022999,2]
[310621869,1704587438967,-500.0,0.00022999,2]
[310621870,1704587438977,-500.0,0.00022999,2]
[310621871,1704587438987,-500.0,0.00022999,2]
[310621872,1704587438996,-500.0,0.00022999,2]
[310621873,1704587439005,-506.06455193,0.00022999,2]
[310621874,1704587439014,-500.0,0.00022999,2]
[310621875,1704587439023,-500.0,0.00022999,2]
[310621876,1704587439033,-297.17037884,0.00022999,2]
[310621877,1704587439042,-500.0,0.00022999,2]
[310621878,1704587439051,-500.0,0.00022999,2]
[310621879,1704587439060,-500.0,0.00022999,2]
[310621880,1704587439069,-500.0,0.00022999,2]
[310621881,1704587439079,-500.0,0.00022999,2]
[310621882,1704587439088,-500.0,0.00022999,2]
[310621883,1704587439097,-500.0,0.00022999,2]
[310621884,1704587439107,-500.0,0.00022999,2]
[310621885,1704587439116,-408.76144108,0.00022999,2]
[310621886,1704587439125,-500.0,0.00022999,2]
[310621887,1704587439134,-500.0,0.00022999,2]
[310621888,1704587439142,-458.98321214,0.00022999,2]
[310621889,1704587439164,-41.01678786,0.00022999,2]
[310621890,1704587439173,-500.0,0.00022999,2]
[310621891,1704587439183,-500.0,0.00022999,2]
[310621892,1704587439192,-500.0,0.00022999,2]
[310621893,1704587439201,-349.9528648,0.00022999,2]
[310621894,1704587439210,-500.0,0.00022999,2]
[310621895,1704587439220,-500.0,0.00022999,2]
[310621896,1704587439229,-500.0,0.00022999,2]
[310621897,1704587439241,-500.0,0.00022999,2]
[310621898,1704587439250,-500.0,0.00022999,2]
[310621899,1704587439259,-251.84944742,0.00022999,2]
[310621900,1704587439270,-500.0,0.00022999,2]
[310621901,1704587439279,-500.0,0.00022999,2]
[310621902,1704587439288,-500.0,0.00022999,2]
[310621904,1704587439298,-500.0,0.00022999,2]
[310621906,1704587439308,-500.0,0.00022999,2]
[310621907,1704587439318,-500.0,0.00022999,2]
[310621908,1704587439327,-500.0,0.00022999,2]
[310621909,1704587439340,-500.0,0.00022999,2]
[310621910,1704587439351,-500.0,0.00022999,2]
[310621912,1704587439361,-500.0,0.00022999,2]
[310621913,1704587439371,-500.0,0.00022999,2]
[310621914,1704587439393,-500.0,0.00022999,2]
[310621915,1704587439402,-500.0,0.00022999,2]
[310621916,1704587439412,-500.0,0.00022999,2]
[310621917,1704587439422,-628.21,0.00022999,2]
[310621918,1704587439432,-11.77785009,0.00022999,2]
[310621919,1704587439451,-488.22214991,0.00022999,2]
[310621920,1704587439460,-97.32223008,0.00022999,2]
[310621921,1704587439488,-277.42758899,0.00022999,2]
[310621922,1704587439497,-500.0,0.00022999,2]
[310621923,1704587439507,-500.0,0.00022999,2]
[310621924,1704587439516,-500.0,0.00022999,2]
[310621925,1704587439527,-500.0,0.00022999,2]
[310621926,1704587439537,-185.38849659,0.00022999,2]
[310621927,1704587439547,-500.0,0.00022999,2]
[310621928,1704587439557,-500.0,0.00022999,2]
[310621929,1704587439568,-500.0,0.00022999,2]
[310621930,1704587439578,-500.0,0.00022999,2]
[310621931,1704587439587,-500.0,0.00022999,2]
[310621932,1704587439598,-500.0,0.00022999,2]
[310621933,1704587439608,-500.0,0.00022999,2]
[310621934,1704587439618,-500.0,0.00022999,2]
[310621935,1704587439628,-239.56,0.00022999,2]
[310621936,1704587439639,-500.0,0.00022999,2]
[310621937,1704587439648,-199.6145414,0.00022999,2]
[310621938,1704587439658,-500.0,0.00022999,2]
[310621939,1704587439670,-500.0,0.00022999,2]
[310621940,1704587439681,-500.0,0.00022999,2]
[310621941,1704587439692,-500.0,0.00022999,2]
[310621942,1704587439702,-500.0,0.00022999,2]
[310621943,1704587439713,-500.0,0.00022999,2]
[310621944,1704587439724,-500.0,0.00022999,2]
[310621945,1704587439735,-497.51478511,0.00022999,2]
[310621946,1704587439744,-500.0,0.00022999,2]
[310621947,1704587439754,-500.0,0.00022999,2]
[310621948,1704587439763,-500.0,0.00022999,2]
[310621949,1704587439772,-500.0,0.00022999,2]
[310621950,1704587439781,-601.89909467,0.00022999,2]
[310621951,1704587439790,-500.0,0.00022999,2]
[310621952,1704587439800,-500.0,0.00022999,2]
[310621953,1704587439809,-500.0,0.00022999,2]
[310621954,1704587439819,-500.0,0.00022999,2]
[310621955,1704587439829,-500.0,0.00022999,2]
[310621956,1704587439839,-500.0,0.00022999,2]
[310621957,1704587439848,-500.0,0.00022999,2]
[310621958,1704587439857,-500.0,0.00022999,2]
[310621959,1704587439866,-500.0,0.00022999,2]
[310621960,1704587439875,-459.03670724,0.00022999,2]
[310621961,1704587439884,-500.0,0.00022999,2]
[310621962,1704587439893,-500.0,0.00022999,2]
[310621963,1704587439903,-404.8163887,0.00022999,2]
[310621964,1704587439912,-500.0,0.00022999,2]
[310621965,1704587439922,-362.28303887,0.00022999,2]
[310621966,1704587439931,-500.0,0.00022999,2]
[310621967,1704587439940,-500.0,0.00022999,2]
[310621968,1704587439950,-500.0,0.00022999,2]
[310621969,1704587439959,-463.87,0.00022999,2]
[310621970,1704587439969,-500.0,0.00022999,2]
[310621971,1704587439979,-500.0,0.00022999,2]
[310621972,1704587439989,-252.57397574,0.00022999,2]
[310621973,1704587439998,-500.0,0.00022999,2]
[310621974,1704587440007,-500.0,0.00022999,2]
[310621975,1704587440017,-500.0,0.00022999,2]
[310621976,1704587440027,-500.0,0.00022999,2]
[310621977,1704587440036,-512.2,0.00022999,2]
[310621978,1704587440045,-500.0,0.00022999,2]
[310621979,1704587440055,-500.0,0.00022999,2]
[310621980,1704587440064,-500.0,0.00022999,2]
[310621981,1704587440074,-567.24974003,0.00022999,2]
[310621982,1704587440084,-500.0,0.00022999,2]
[310621984,1704587440094,-500.0,0.00022999,2]
[310621986,1704587440103,-500.0,0.00022999,2]
[310621988,1704587440113,-500.0,0.00022999,2]
[310621989,1704587440122,-500.0,0.00022999,2]
[310621992,1704587440132,-527.5,0.00022999,2]
[310621994,1704587440141,-500.0,0.00022999,2]
[310621996,1704587440151,-500.0,0.00022999,2]
[310621998,1704587440161,-500.0,0.00022999,2]
[310622000,1704587440170,-500.0,0.00022999,2]
[310622002,1704587440180,-500.0,0.00022999,2]
[310622004,1704587440189,-500.0,0.00022999,2]
[310622006,1704587440198,-500.0,0.00022999,2]
[310622008,1704587440208,-500.0,0.00022999,2]
[310622010,1704587440218,-500.0,0.00022999,2]
[310622012,1704587440227,-193.52354345,0.00022999,2]
[310622014,1704587440237,-500.0,0.00022999,2]
[310622016,1704587440246,-500.0,0.00022999,2]
[310622018,1704587440256,-500.0,0.00022999,2]
[310622020,1704587440265,-500.0,0.00022999,2]
[310622022,1704587440274,-500.0,0.00022999,2]
[310622024,1704587440283,-644.75,0.00022999,2]
[310622026,1704587440293,-500.0,0.00022999,2]
[310622028,1704587440302,-500.0,0.00022999,2]
[310622030,1704587440311,-500.0,0.00022999,2]
[310622032,1704587440321,-500.0,0.00022999,2]
[310622034,1704587440330,-403.42,0.00022999,2]
[310622036,1704587440341,-500.0,0.00022999,2]
[310622038,1704587440350,-500.0,0.00022999,2]
[310622040,1704587440359,-500.0,0.00022999,2]
[310622042,1704587440368,-186.15,0.00022999,2]
[310622044,1704587440377,-500.0,0.00022999,2]
[310622046,1704587440387,-233.43992429,0.00022999,2]
[310622048,1704587440396,-500.0,0.00022999,2]
[310622050,1704587440405,-500.0,0.00022999,2]
[310622052,1704587440414,-513.6,0.00022999,2]
[310622054,1704587440423,-500.0,0.00022999,2]
[310622056,1704587440432,-500.0,0.00022999,2]
[310622058,1704587440441,-500.0,0.00022999,2]
[310622060,1704587440451,-196.43226824,0.00022999,2]
[310622062,1704587440460,-500.0,0.00022999,2]
[310622064,1704587440469,-500.0,0.00022999,2]
[310622066,1704587440478,-500.0,0.00022999,2]
[310622068,1704587440487,-500.0,0.00022999,2]
[310622069,1704587440496,-500.0,0.00022999,2]
[310622071,1704587440505,-500.0,0.00022999,2]
[310622073,1704587440514,-248.17,0.00022999,2]
[310622075,1704587440524,-500.0,0.00022999,2]
[310622077,1704587440533,-500.0,0.00022999,2]
[310622079,1704587440543,-500.0,0.00022999,2]
[310622081,1704587440551,-500.0,0.00022999,2]
[310622083,1704587440561,-500.0,0.00022999,2]
[310622085,1704587440571,-500.0,0.00022999,2]
[310622087,1704587440580,-500.0,0.00022999,2]
[310622088,1704587440589,-500.0,0.00022999,2]
[310622089,1704587440598,-453.83846458,0.00022999,2]
[310622091,1704587440607,-500.0,0.00022999,2]
[310622092,1704587440616,-500.0,0.00022999,2]
[310622094,1704587440626,-242.15495996,0.00022999,2]
[310622096,1704587440634,-500.0,0.00022999,2]
[310622098,1704587440644,-500.0,0.00022999,2]
[310622100,1704587440653,-200.61000354,0.00022999,2]
[310622103,1704587440662,-500.0,0.00022999,2]
[310622105,1704587440671,-500.0,0.00022999,2]
[310622107,1704587440680,-500.0,0.00022999,2]